[Event "Titled Tuesday Blitz May 30 Late 2023"]
[White "Curtis, John"]
[Black "Campos, Maria Jose"]
[WhiteFideId "3200256"]
[BlackFideId "146803"]
[WhiteElo "2203"]
[BlackElo "2170"]
[Result "0-1"]
[Round "08"]
[TimeControl "180+2"]
[Date "2023.05.31"]
[WhiteClock "0:00:03"]
[BlackClock "0:00:59"]

1. d4 {[%clk 0:03:00]}  Nf6 {[%clk 0:02:58]} 2. c4 {[%clk 0:02:59]}  e6 {[%clk 0:02:58]} 3. Nf3 {[%clk 0:02:56]}  Bb4+ {[%clk 0:02:58]} 4. Nbd2 {[%clk 0:02:53]}  O-O {[%clk 0:02:55]} 5. g3 {[%clk 0:02:53]}  Re8 {[%clk 0:02:49]} 6. Bg2 {[%clk 0:02:53]}  b6 {[%clk 0:02:47]} 7. O-O {[%clk 0:02:53]}  Bb7 {[%clk 0:02:47]} 8. Qc2 {[%clk 0:02:53]}  d5 {[%clk 0:02:46]} 9. a3 {[%clk 0:02:53]}  Bf8 {[%clk 0:02:45]} 10. Ne5 {[%clk 0:02:48]}  Nbd7 {[%clk 0:02:44]} 11. Nxd7 {[%clk 0:02:40]}  Qxd7 {[%clk 0:02:43]} 12. Nf3 {[%clk 0:02:37]}  Qc8 {[%clk 0:02:23]} 13. b3 {[%clk 0:02:27]}  dxc4 {[%clk 0:02:20]} 14. bxc4 {[%clk 0:02:27]}  Be4 {[%clk 0:02:20]} 15. Qb3 {[%clk 0:02:24]}  c5 {[%clk 0:02:20]} 16. Bg5 {[%clk 0:02:04]}  Nd7 {[%clk 0:02:13]} 17. dxc5 {[%clk 0:01:19]}  Nxc5 {[%clk 0:02:13]} 18. Qa2 {[%clk 0:01:16]}  Qb7 {[%clk 0:02:11]} 19. Rfd1 {[%clk 0:01:09]}  g6 {[%clk 0:02:07]} 20. Bf6 {[%clk 0:01:05]}  Nd7 {[%clk 0:01:48]} 21. Bc3 {[%clk 0:00:41]}  Bc5 {[%clk 0:01:47]} 22. Bb4 {[%clk 0:00:40]}  Rad8 {[%clk 0:01:46]} 23. Qb2 {[%clk 0:00:39]}  a5 {[%clk 0:01:37]} 24. Bxa5 {[%clk 0:00:33]}  bxa5 {[%clk 0:01:34]} 25. Qxb7 {[%clk 0:00:33]}  Bxb7 {[%clk 0:01:34]} 26. Rdb1 {[%clk 0:00:24]}  Be4 {[%clk 0:01:33]} 27. Rb5 {[%clk 0:00:24]}  Bc6 {[%clk 0:01:33]} 28. Rxa5 {[%clk 0:00:23]}  Rb8 {[%clk 0:01:28]} 29. Ne5 {[%clk 0:00:22]}  Nxe5 {[%clk 0:01:24]} 30. Rxc5 {[%clk 0:00:21]}  Bxg2 {[%clk 0:01:23]} 31. Rxe5 {[%clk 0:00:21]}  Bc6 {[%clk 0:01:21]} 32. Rc5 {[%clk 0:00:20]}  Ba4 {[%clk 0:01:19]} 33. Rc1 {[%clk 0:00:14]}  Rb3 {[%clk 0:01:17]} 34. Ra5 {[%clk 0:00:13]}  Rxa3 {[%clk 0:01:12]} 35. c5 {[%clk 0:00:13]}  Ra2 {[%clk 0:01:07]} 36. c6 {[%clk 0:00:11]}  Bb3 {[%clk 0:01:05]} 37. Rb5 {[%clk 0:00:05]}  Bd5 {[%clk 0:01:02]} 38. Kf1 {[%clk 0:00:04]}  Rc8 {[%clk 0:01:00]} 39. c7 {[%clk 0:00:03]}  Raa8 {[%clk 0:00:59]} 0-1


[Site "https://www.chess.com"]

[Event "Titled Tuesday Blitz May 30 Late 2023"]
[White "Silva Rosas, Natalia"]
[Black "Harish, Neeraj"]
[WhiteFideId "3000575"]
[BlackFideId "30958130"]
[WhiteElo "1651"]
[BlackElo "1879"]
[Result "1-0"]
[Round "08"]
[TimeControl "180+2"]
[Date "2023.05.31"]
[WhiteClock "0:00:10"]
[BlackClock "0:00:04"]

1. e4 {[%clk 0:03:00]}  c5 {[%clk 0:02:57]} 2. Nc3 {[%clk 0:02:58]}  Nc6 {[%clk 0:02:56]} 3. f4 {[%clk 0:02:58]}  g6 {[%clk 0:02:55]} 4. Nf3 {[%clk 0:02:58]}  Bg7 {[%clk 0:02:55]} 5. Bc4 {[%clk 0:02:58]}  e6 {[%clk 0:02:55]} 6. d3 {[%clk 0:02:57]}  Nge7 {[%clk 0:02:55]} 7. a4 {[%clk 0:02:55]}  O-O {[%clk 0:02:55]} 8. O-O {[%clk 0:02:53]}  d5 {[%clk 0:02:53]} 9. Ba2 {[%clk 0:02:25]}  a6 {[%clk 0:02:42]} 10. Qe1 {[%clk 0:02:01]}  Rb8 {[%clk 0:02:20]} 11. Ng5 {[%clk 0:01:54]}  h6 {[%clk 0:02:16]} 12. Nh3 {[%clk 0:01:42]}  b5 {[%clk 0:02:05]} 13. a5 {[%clk 0:01:35]}  b4 {[%clk 0:01:58]} 14. Ne2 {[%clk 0:01:29]}  Nd4 {[%clk 0:01:48]} 15. Nxd4 {[%clk 0:01:19]}  Bxd4+ {[%clk 0:01:49]} 16. Kh1 {[%clk 0:01:17]}  Bg7 {[%clk 0:01:35]} 17. f5 {[%clk 0:01:17]}  exf5 {[%clk 0:01:23]} 18. Qh4 {[%clk 0:01:11]}  g5 {[%clk 0:00:57]} 19. Bxg5 {[%clk 0:01:06]}  hxg5 {[%clk 0:00:56]} 20. Nxg5 {[%clk 0:01:05]}  Re8 {[%clk 0:00:57]} 21. Qh7+ {[%clk 0:00:52]}  Kf8 {[%clk 0:00:57]} 22. Qh5 {[%clk 0:00:44]}  Be6 {[%clk 0:00:16]} 23. exf5 {[%clk 0:00:40]}  Nxf5 {[%clk 0:00:16]} 24. Rxf5 {[%clk 0:00:37]}  Bf6 {[%clk 0:00:16]} 25. Nh7+ {[%clk 0:00:32]}  Kg7 {[%clk 0:00:16]} 26. Rxf6 {[%clk 0:00:24]}  Rh8 {[%clk 0:00:15]} 27. Rh6 {[%clk 0:00:12]}  Qd6 {[%clk 0:00:04]} 28. Qg5# {[%clk 0:00:10]} 1-0


[Site "https://www.chess.com"]

[Event "Titled Tuesday Blitz May 30 Late 2023"]
[White "Celestino, Rafael Teixeira"]
[Black "Kornyukov, Alexey"]
[WhiteFideId "2108925"]
[BlackFideId "4150457"]
[WhiteElo "2314"]
[BlackElo "2352"]
[Result "1-0"]
[Round "08"]
[TimeControl "180+2"]
[Date "2023.05.31"]
[WhiteClock "0:00:57"]
[BlackClock "0:00:02"]

1. e4 {[%clk 0:03:00]}  c5 {[%clk 0:02:59]} 2. Nf3 {[%clk 0:02:59]}  Nc6 {[%clk 0:02:56]} 3. d4 {[%clk 0:02:59]}  cxd4 {[%clk 0:02:57]} 4. Nxd4 {[%clk 0:03:00]}  Nf6 {[%clk 0:02:57]} 5. Nc3 {[%clk 0:03:00]}  e5 {[%clk 0:02:58]} 6. Nxc6 {[%clk 0:03:00]}  bxc6 {[%clk 0:02:57]} 7. Bg5 {[%clk 0:03:01]}  Bb4 {[%clk 0:02:56]} 8. Qd3 {[%clk 0:02:56]}  h6 {[%clk 0:02:41]} 9. Bxf6 {[%clk 0:02:55]}  Qxf6 {[%clk 0:02:28]} 10. Be2 {[%clk 0:02:54]}  O-O {[%clk 0:02:14]} 11. O-O {[%clk 0:02:53]}  d6 {[%clk 0:02:06]} 12. a3 {[%clk 0:02:53]}  Bc5 {[%clk 0:01:59]} 13. Na4 {[%clk 0:02:48]}  Bb6 {[%clk 0:01:51]} 14. Nxb6 {[%clk 0:02:48]}  axb6 {[%clk 0:01:52]} 15. Qe3 {[%clk 0:02:47]}  Rb8 {[%clk 0:01:27]} 16. Rfd1 {[%clk 0:02:47]}  Rd8 {[%clk 0:01:27]} 17. Rd2 {[%clk 0:02:45]}  d5 {[%clk 0:01:26]} 18. exd5 {[%clk 0:02:42]}  cxd5 {[%clk 0:01:27]} 19. Rad1 {[%clk 0:02:43]}  d4 {[%clk 0:01:24]} 20. Qb3 {[%clk 0:02:42]}  e4 {[%clk 0:01:14]} 21. Qb4 {[%clk 0:02:34]}  Bf5 {[%clk 0:00:12]} 22. Rxd4 {[%clk 0:02:32]}  Rxd4 {[%clk 0:00:09]} 23. Rxd4 {[%clk 0:02:33]}  Rc8 {[%clk 0:00:08]} 24. c3 {[%clk 0:02:31]}  Qg5 {[%clk 0:00:09]} 25. Qxb6 {[%clk 0:02:11]}  Bh3 {[%clk 0:00:08]} 26. Bf1 {[%clk 0:01:40]}  e3 {[%clk 0:00:07]} 27. fxe3 {[%clk 0:01:25]}  Qxe3+ {[%clk 0:00:06]} 28. Kh1 {[%clk 0:01:25]}  Re8 {[%clk 0:00:06]} 29. gxh3 {[%clk 0:01:18]}  Qf3+ {[%clk 0:00:04]} 30. Kg1 {[%clk 0:01:13]}  Re1 {[%clk 0:00:05]} 31. Qb8+ {[%clk 0:01:01]}  Kh7 {[%clk 0:00:05]} 32. Qb5 {[%clk 0:01:02]}  Qe3+ {[%clk 0:00:03]} 33. Kg2 {[%clk 0:01:01]}  g6 {[%clk 0:00:02]} 34. Qd3 {[%clk 0:00:57]} 1-0


[Site "https://www.chess.com"]

[Event "Titled Tuesday Blitz May 30 Late 2023"]
[White "Stead, Kerry"]
[Black "Wang, Alexander J"]
[WhiteFideId "3202577"]
[BlackFideId "30955270"]
[WhiteElo "1997"]
[BlackElo "2248"]
[Result "0-1"]
[Round "08"]
[TimeControl "180+2"]
[Date "2023.05.31"]
[WhiteClock "0:00:05"]
[BlackClock "0:00:42"]

1. d4 {[%clk 0:02:37]}  d5 {[%clk 0:02:57]} 2. e4 {[%clk 0:02:28]}  dxe4 {[%clk 0:02:54]} 3. Nc3 {[%clk 0:02:27]}  Nf6 {[%clk 0:02:53]} 4. f3 {[%clk 0:02:27]}  exf3 {[%clk 0:02:52]} 5. Nxf3 {[%clk 0:02:21]}  e6 {[%clk 0:02:50]} 6. Bg5 {[%clk 0:02:12]}  Be7 {[%clk 0:02:42]} 7. Bd3 {[%clk 0:01:56]}  O-O {[%clk 0:02:40]} 8. O-O {[%clk 0:01:55]}  h6 {[%clk 0:02:40]} 9. Bxf6 {[%clk 0:01:48]}  Bxf6 {[%clk 0:02:33]} 10. Ne4 {[%clk 0:01:46]}  Bxd4+ {[%clk 0:02:30]} 11. Kh1 {[%clk 0:01:23]}  Nc6 {[%clk 0:02:29]} 12. c3 {[%clk 0:01:15]}  Bb6 {[%clk 0:02:23]} 13. Qe1 {[%clk 0:01:00]}  Qxd3 {[%clk 0:02:01]} 14. Rd1 {[%clk 0:00:55]}  Qb5 {[%clk 0:01:20]} 15. Qg3 {[%clk 0:00:39]}  Qf5 {[%clk 0:00:57]} 16. Rde1 {[%clk 0:00:34]}  Qg6 {[%clk 0:00:55]} 17. Qxg6 {[%clk 0:00:25]}  fxg6 {[%clk 0:00:54]} 18. c4 {[%clk 0:00:21]}  Ba5 {[%clk 0:00:43]} 19. Re2 {[%clk 0:00:05]}  e5 {[%clk 0:00:42]} 0-1


[Site "https://www.chess.com"]

[Event "Titled Tuesday Blitz May 30 Late 2023"]
[White "Sanchez, Robert"]
[Black "Escalante Ramirez, Rafael"]
[WhiteFideId "2034360"]
[BlackFideId "3900177"]
[WhiteElo "1807"]
[BlackElo "2211"]
[Result "0-1"]
[Round "08"]
[TimeControl "180+2"]
[Date "2023.05.31"]
[WhiteClock "0:02:25"]
[BlackClock "0:01:48"]

1. Nf3 {[%clk 0:03:00]}  Nf6 {[%clk 0:02:57]} 2. c4 {[%clk 0:03:00]}  e6 {[%clk 0:02:55]} 3. Nc3 {[%clk 0:03:01]}  Bb4 {[%clk 0:02:54]} 4. Qc2 {[%clk 0:03:00]}  b6 {[%clk 0:02:53]} 5. a3 {[%clk 0:03:00]}  Bxc3 {[%clk 0:02:53]} 6. Qxc3 {[%clk 0:03:01]}  Bb7 {[%clk 0:02:52]} 7. b3 {[%clk 0:02:58]}  d6 {[%clk 0:02:51]} 8. Bb2 {[%clk 0:02:59]}  c5 {[%clk 0:02:50]} 9. g3 {[%clk 0:02:59]}  Nbd7 {[%clk 0:02:50]} 10. Bg2 {[%clk 0:02:59]}  e5 {[%clk 0:02:47]} 11. d3 {[%clk 0:02:59]}  O-O {[%clk 0:02:46]} 12. O-O {[%clk 0:02:59]}  Ne8 {[%clk 0:02:35]} 13. e3 {[%clk 0:02:59]}  Nc7 {[%clk 0:02:18]} 14. Rfd1 {[%clk 0:02:54]}  Qe7 {[%clk 0:02:17]} 15. Nh4 {[%clk 0:02:36]}  Bxg2 {[%clk 0:02:12]} 16. Nxg2 {[%clk 0:02:35]}  Ne6 {[%clk 0:02:09]} 17. Re1 {[%clk 0:02:30]}  f6 {[%clk 0:02:03]} 18. Rad1 {[%clk 0:02:29]}  Qf7 {[%clk 0:02:03]} 19. d4 {[%clk 0:02:29]}  exd4 {[%clk 0:01:59]} 20. exd4 {[%clk 0:02:29]}  Nxd4 {[%clk 0:01:59]} 21. Qd3 {[%clk 0:02:28]}  Ne5 {[%clk 0:01:57]} 22. Qe4 {[%clk 0:02:27]}  Ndf3+ {[%clk 0:01:49]} 23. Kh1 {[%clk 0:02:24]}  Nxe1 {[%clk 0:01:49]} 24. Rxe1 {[%clk 0:02:25]}  Rae8 {[%clk 0:01:48]} 25. Qxh7+ {[%clk 0:02:25]} 0-1


[Site "https://www.chess.com"]

[Event "Titled Tuesday Blitz May 30 Late 2023"]
[White "Bluebaum, Matthias"]
[Black "Duda, Jan-Krzysztof"]
[WhiteFideId "24651516"]
[BlackFideId "1170546"]
[WhiteElo "2639"]
[BlackElo "2790"]
[Result "0-1"]
[Round "09"]
[TimeControl "180+2"]
[Date "2023.05.31"]
[WhiteClock "0:00:05"]
[BlackClock "0:00:06"]

1. d4 {[%clk 0:03:00]}  Nf6 {[%clk 0:02:59]} 2. c4 {[%clk 0:03:01]}  e6 {[%clk 0:03:00]} 3. Nc3 {[%clk 0:03:02]}  Bb4 {[%clk 0:03:00]} 4. e3 {[%clk 0:03:02]}  c5 {[%clk 0:03:00]} 5. Ne2 {[%clk 0:03:01]}  cxd4 {[%clk 0:02:56]} 6. exd4 {[%clk 0:03:01]}  d5 {[%clk 0:02:56]} 7. c5 {[%clk 0:03:01]}  Ne4 {[%clk 0:02:42]} 8. a3 {[%clk 0:03:01]}  Nxc3 {[%clk 0:02:41]} 9. Nxc3 {[%clk 0:03:02]}  Bxc3+ {[%clk 0:02:41]} 10. bxc3 {[%clk 0:03:03]}  O-O {[%clk 0:02:41]} 11. Bd3 {[%clk 0:03:02]}  b6 {[%clk 0:02:36]} 12. Qh5 {[%clk 0:03:02]}  f5 {[%clk 0:02:34]} 13. cxb6 {[%clk 0:02:56]}  axb6 {[%clk 0:02:35]} 14. O-O {[%clk 0:02:55]}  Ba6 {[%clk 0:02:33]} 15. Qe2 {[%clk 0:02:47]}  Bxd3 {[%clk 0:02:27]} 16. Qxd3 {[%clk 0:02:48]}  Qd7 {[%clk 0:02:25]} 17. Bf4 {[%clk 0:02:45]}  Rc8 {[%clk 0:02:20]} 18. Rfe1 {[%clk 0:02:39]}  Rc6 {[%clk 0:02:19]} 19. h3 {[%clk 0:02:29]}  Qc8 {[%clk 0:02:16]} 20. Re3 {[%clk 0:02:05]}  Nd7 {[%clk 0:02:16]} 21. Rg3 {[%clk 0:01:39]}  Nf8 {[%clk 0:02:11]} 22. Bd2 {[%clk 0:01:15]}  Ng6 {[%clk 0:02:04]} 23. Qb5 {[%clk 0:01:09]}  Ra5 {[%clk 0:02:02]} 24. Qb4 {[%clk 0:01:09]}  Qc7 {[%clk 0:01:51]} 25. Re1 {[%clk 0:01:06]}  Kf7 {[%clk 0:01:47]} 26. h4 {[%clk 0:00:57]}  Nxh4 {[%clk 0:01:28]} 27. Rh3 {[%clk 0:00:57]}  Qd8 {[%clk 0:01:29]} 28. Qb3 {[%clk 0:00:50]}  Ra7 {[%clk 0:01:13]} 29. Qd1 {[%clk 0:00:45]}  h6 {[%clk 0:00:57]} 30. Qh5+ {[%clk 0:00:36]}  Ng6 {[%clk 0:00:57]} 31. g4 {[%clk 0:00:25]}  Rxa3 {[%clk 0:00:44]} 32. gxf5 {[%clk 0:00:24]}  exf5 {[%clk 0:00:45]} 33. Rg3 {[%clk 0:00:21]}  Ra2 {[%clk 0:00:18]} 34. Qxf5+ {[%clk 0:00:15]}  Rf6 {[%clk 0:00:17]} 35. Qd3 {[%clk 0:00:16]}  Qd7 {[%clk 0:00:15]} 36. Ree3 {[%clk 0:00:14]}  Qf5 {[%clk 0:00:14]} 37. Qe2 {[%clk 0:00:11]}  Ra1+ {[%clk 0:00:09]} 38. Be1 {[%clk 0:00:11]}  Kg8 {[%clk 0:00:08]} 39. Re8+ {[%clk 0:00:11]}  Kh7 {[%clk 0:00:08]} 40. Rb8 {[%clk 0:00:09]}  Re6 {[%clk 0:00:07]} 41. Re3 {[%clk 0:00:08]}  Nf4 {[%clk 0:00:08]} 42. Qf1 {[%clk 0:00:05]}  Rxe3 {[%clk 0:00:05]} 43. fxe3 {[%clk 0:00:06]}  Rxe1 {[%clk 0:00:05]} 44. Qxe1 {[%clk 0:00:05]}  Qg4+ {[%clk 0:00:06]} 0-1


[Site "https://www.chess.com"]

[Event "Titled Tuesday Blitz May 30 Late 2023"]
[White "Henriquez Villagra, Cristobal"]
[Black "Bortnyk, Olexandr"]
[WhiteFideId "3409350"]
[BlackFideId "14120828"]
[WhiteElo "2542"]
[BlackElo "2734"]
[Result "1-0"]
[Round "09"]
[TimeControl "180+2"]
[Date "2023.05.31"]
[WhiteClock "0:00:24"]
[BlackClock "0:00:03"]

1. Nf3 {[%clk 0:03:00]}  Nf6 {[%clk 0:02:54]} 2. g3 {[%clk 0:03:01]}  b6 {[%clk 0:02:54]} 3. Bg2 {[%clk 0:03:01]}  Bb7 {[%clk 0:02:55]} 4. O-O {[%clk 0:03:02]}  g6 {[%clk 0:02:54]} 5. d3 {[%clk 0:03:02]}  Bg7 {[%clk 0:02:54]} 6. e4 {[%clk 0:03:02]}  O-O {[%clk 0:02:54]} 7. c4 {[%clk 0:03:02]}  d6 {[%clk 0:02:53]} 8. Nc3 {[%clk 0:03:03]}  c5 {[%clk 0:02:53]} 9. Re1 {[%clk 0:02:58]}  e5 {[%clk 0:02:44]} 10. a3 {[%clk 0:02:54]}  Nc6 {[%clk 0:02:43]} 11. Rb1 {[%clk 0:02:53]}  a5 {[%clk 0:02:42]} 12. Bg5 {[%clk 0:02:44]}  Nd4 {[%clk 0:02:39]} 13. Nxd4 {[%clk 0:02:41]}  cxd4 {[%clk 0:02:40]} 14. Nd5 {[%clk 0:02:41]}  Bxd5 {[%clk 0:02:36]} 15. cxd5 {[%clk 0:02:39]}  h6 {[%clk 0:02:36]} 16. Bxf6 {[%clk 0:02:36]}  Bxf6 {[%clk 0:02:36]} 17. Rc1 {[%clk 0:02:36]}  a4 {[%clk 0:02:23]} 18. Rc6 {[%clk 0:02:31]}  h5 {[%clk 0:02:24]} 19. Qd2 {[%clk 0:02:26]}  b5 {[%clk 0:02:13]} 20. Bh3 {[%clk 0:02:20]}  Be7 {[%clk 0:02:06]} 21. Kg2 {[%clk 0:02:02]}  Kg7 {[%clk 0:01:56]} 22. f4 {[%clk 0:01:49]}  h4 {[%clk 0:01:52]} 23. fxe5 {[%clk 0:01:40]}  dxe5 {[%clk 0:01:50]} 24. Rf1 {[%clk 0:01:40]}  Bg5 {[%clk 0:01:46]} 25. Qe2 {[%clk 0:01:40]}  hxg3 {[%clk 0:01:44]} 26. hxg3 {[%clk 0:01:40]}  Ra7 {[%clk 0:01:39]} 27. Qg4 {[%clk 0:01:39]}  Be3 {[%clk 0:01:16]} 28. d6 {[%clk 0:01:18]}  Qa5 {[%clk 0:00:34]} 29. d7 {[%clk 0:01:03]}  Qd2+ {[%clk 0:00:34]} 30. Kh1 {[%clk 0:01:03]}  Bg5 {[%clk 0:00:35]} 31. Rc8 {[%clk 0:00:49]}  Rd8 {[%clk 0:00:33]} 32. Qf3 {[%clk 0:00:45]}  Rdxd7 {[%clk 0:00:24]} 33. Bxd7 {[%clk 0:00:42]}  Rxd7 {[%clk 0:00:24]} 34. Rf2 {[%clk 0:00:39]}  Qe3 {[%clk 0:00:20]} 35. Kg2 {[%clk 0:00:36]}  Re7 {[%clk 0:00:15]} 36. Qg4 {[%clk 0:00:36]}  f6 {[%clk 0:00:12]} 37. Rd8 {[%clk 0:00:33]}  Qxd3 {[%clk 0:00:12]} 38. Rd7 {[%clk 0:00:27]}  Kf7 {[%clk 0:00:08]} 39. Qxg5 {[%clk 0:00:23]}  Qxe4+ {[%clk 0:00:07]} 40. Kh2 {[%clk 0:00:23]}  Qc6 {[%clk 0:00:02]} 41. Rxe7+ {[%clk 0:00:23]}  Kxe7 {[%clk 0:00:03]} 42. Qxg6 {[%clk 0:00:24]}  Qe6 {[%clk 0:00:02]} 43. Qg7+ {[%clk 0:00:24]}  Qf7 {[%clk 0:00:02]} 44. Qxf7+ {[%clk 0:00:22]}  Kxf7 {[%clk 0:00:03]} 45. g4 {[%clk 0:00:23]}  Ke6 {[%clk 0:00:03]} 46. Kg3 {[%clk 0:00:24]}  d3 {[%clk 0:00:03]} 47. Kf3 {[%clk 0:00:24]} 1-0


[Site "https://www.chess.com"]

[Event "Titled Tuesday Blitz May 30 Late 2023"]
[White "Makarian, Rudik"]
[Black "Hakobyan, Aram"]
[WhiteFideId "44105681"]
[BlackFideId "13306677"]
[WhiteElo "2461"]
[BlackElo "2584"]
[Result "0-1"]
[Round "09"]
[TimeControl "180+2"]
[Date "2023.05.31"]
[WhiteClock "0:00:06"]
[BlackClock "0:00:13"]

1. d4 {[%clk 0:03:00]}  Nf6 {[%clk 0:02:59]} 2. c4 {[%clk 0:03:01]}  e6 {[%clk 0:03:00]} 3. Nf3 {[%clk 0:03:02]}  d5 {[%clk 0:02:58]} 4. Nc3 {[%clk 0:03:02]}  Nbd7 {[%clk 0:02:57]} 5. cxd5 {[%clk 0:03:01]}  exd5 {[%clk 0:02:57]} 6. Bg5 {[%clk 0:03:02]}  Bb4 {[%clk 0:02:56]} 7. e3 {[%clk 0:02:58]}  h6 {[%clk 0:02:55]} 8. Bh4 {[%clk 0:02:58]}  g5 {[%clk 0:02:55]} 9. Bg3 {[%clk 0:02:59]}  Ne4 {[%clk 0:02:55]} 10. Nd2 {[%clk 0:02:59]}  Nxg3 {[%clk 0:02:54]} 11. hxg3 {[%clk 0:02:59]}  Nb6 {[%clk 0:02:55]} 12. Bd3 {[%clk 0:02:56]}  Be6 {[%clk 0:02:52]} 13. a3 {[%clk 0:02:53]}  Bf8 {[%clk 0:02:48]} 14. Qc2 {[%clk 0:02:43]}  Bg7 {[%clk 0:02:44]} 15. Bf5 {[%clk 0:02:38]}  Bxf5 {[%clk 0:02:20]} 16. Qxf5 {[%clk 0:02:39]}  Qd7 {[%clk 0:02:20]} 17. Qd3 {[%clk 0:02:17]}  c6 {[%clk 0:02:06]} 18. b4 {[%clk 0:02:01]}  O-O {[%clk 0:02:05]} 19. O-O {[%clk 0:02:00]}  Rfe8 {[%clk 0:01:41]} 20. a4 {[%clk 0:01:48]}  Nc8 {[%clk 0:01:41]} 21. b5 {[%clk 0:01:47]}  Nd6 {[%clk 0:01:41]} 22. bxc6 {[%clk 0:01:44]}  bxc6 {[%clk 0:01:42]} 23. a5 {[%clk 0:01:37]}  h5 {[%clk 0:01:42]} 24. Na4 {[%clk 0:01:35]}  h4 {[%clk 0:01:41]} 25. Nc5 {[%clk 0:01:35]}  Qg4 {[%clk 0:01:38]} 26. gxh4 {[%clk 0:01:26]}  gxh4 {[%clk 0:01:39]} 27. Kh2 {[%clk 0:01:24]}  Nf5 {[%clk 0:01:27]} 28. Rab1 {[%clk 0:00:55]}  Bf8 {[%clk 0:01:27]} 29. Nf3 {[%clk 0:00:48]}  Bd6+ {[%clk 0:01:25]} 30. Kh1 {[%clk 0:00:48]}  h3 {[%clk 0:01:05]} 31. Rg1 {[%clk 0:00:47]}  Kh8 {[%clk 0:01:02]} 32. Qd1 {[%clk 0:00:11]}  Rg8 {[%clk 0:00:59]} 33. g3 {[%clk 0:00:10]}  Rae8 {[%clk 0:00:52]} 34. Nh2 {[%clk 0:00:10]}  Qxd1 {[%clk 0:00:45]} 35. Rgxd1 {[%clk 0:00:11]}  Bxg3 {[%clk 0:00:39]} 36. fxg3 {[%clk 0:00:11]}  Nxg3+ {[%clk 0:00:40]} 37. Kg1 {[%clk 0:00:12]}  Ne2+ {[%clk 0:00:36]} 38. Kh1 {[%clk 0:00:08]}  Rg2 {[%clk 0:00:34]} 39. Nf1 {[%clk 0:00:08]}  Nc3 {[%clk 0:00:26]} 40. Nd7 {[%clk 0:00:07]}  Reg8 {[%clk 0:00:21]} 41. Ne5 {[%clk 0:00:06]}  Rg1+ {[%clk 0:00:20]} 42. Kh2 {[%clk 0:00:06]}  Ne4 {[%clk 0:00:13]} 43. Nd2 {[%clk 0:00:05]}  R8g2+ {[%clk 0:00:11]} 44. Kxh3 {[%clk 0:00:05]}  Nf2+ {[%clk 0:00:12]} 45. Kh4 {[%clk 0:00:06]}  Rh2# {[%clk 0:00:13]} 0-1


[Site "https://www.chess.com"]

[Event "Titled Tuesday Blitz May 30 Late 2023"]
[White "Hansen, Eric"]
[Black "Moussard, Jules"]
[WhiteFideId "2606771"]
[BlackFideId "642908"]
[WhiteElo "2561"]
[BlackElo "2610"]
[Result "1-0"]
[Round "09"]
[TimeControl "180+2"]
[Date "2023.05.31"]
[WhiteClock "0:00:29"]
[BlackClock "0:00:01"]

1. e4 {[%clk 0:02:56]}  c5 {[%clk 0:02:59]} 2. Nf3 {[%clk 0:02:51]}  d6 {[%clk 0:02:59]} 3. Bb5+ {[%clk 0:02:46]}  Bd7 {[%clk 0:03:00]} 4. Bxd7+ {[%clk 0:02:45]}  Qxd7 {[%clk 0:03:01]} 5. c4 {[%clk 0:02:45]}  Nc6 {[%clk 0:03:00]} 6. Nc3 {[%clk 0:02:45]}  Nf6 {[%clk 0:02:58]} 7. d4 {[%clk 0:02:45]}  cxd4 {[%clk 0:02:58]} 8. Nxd4 {[%clk 0:02:46]}  g6 {[%clk 0:02:59]} 9. f3 {[%clk 0:02:47]}  Bg7 {[%clk 0:02:59]} 10. Nde2 {[%clk 0:02:42]}  O-O {[%clk 0:02:54]} 11. O-O {[%clk 0:02:43]}  a6 {[%clk 0:02:53]} 12. a4 {[%clk 0:02:42]}  e6 {[%clk 0:02:43]} 13. Kh1 {[%clk 0:02:41]}  Rac8 {[%clk 0:02:10]} 14. Bg5 {[%clk 0:02:36]}  h6 {[%clk 0:02:04]} 15. Bh4 {[%clk 0:02:36]}  g5 {[%clk 0:01:51]} 16. Bf2 {[%clk 0:02:34]}  Qe7 {[%clk 0:01:44]} 17. a5 {[%clk 0:02:28]}  Nd7 {[%clk 0:01:27]} 18. b3 {[%clk 0:02:05]}  Nc5 {[%clk 0:01:23]} 19. Rb1 {[%clk 0:02:00]}  Nb4 {[%clk 0:01:21]} 20. Qd2 {[%clk 0:01:57]}  Qc7 {[%clk 0:01:18]} 21. Na2 {[%clk 0:01:53]}  Nxa2 {[%clk 0:01:10]} 22. Qxa2 {[%clk 0:01:52]}  g4 {[%clk 0:01:06]} 23. Rbd1 {[%clk 0:01:48]}  gxf3 {[%clk 0:00:54]} 24. gxf3 {[%clk 0:01:48]}  f5 {[%clk 0:00:55]} 25. Nf4 {[%clk 0:01:44]}  Qf7 {[%clk 0:00:46]} 26. exf5 {[%clk 0:01:34]}  Qxf5 {[%clk 0:00:45]} 27. Be3 {[%clk 0:01:29]}  Be5 {[%clk 0:00:45]} 28. Ng6 {[%clk 0:01:19]}  Rf7 {[%clk 0:00:45]} 29. Nxe5 {[%clk 0:01:15]}  Qxe5 {[%clk 0:00:45]} 30. Bd4 {[%clk 0:01:07]}  Qf5 {[%clk 0:00:42]} 31. Rg1+ {[%clk 0:01:03]}  Kf8 {[%clk 0:00:40]} 32. Rg3 {[%clk 0:01:02]}  Ke7 {[%clk 0:00:34]} 33. Be3 {[%clk 0:00:58]}  Rg8 {[%clk 0:00:17]} 34. Qd2 {[%clk 0:00:55]}  Rd8 {[%clk 0:00:02]} 35. b4 {[%clk 0:00:50]}  Nb3 {[%clk 0:00:01]} 36. Qc3 {[%clk 0:00:49]}  h5 {[%clk 0:00:01]} 37. Qxb3 {[%clk 0:00:47]}  h4 {[%clk 0:00:02]} 38. Bg5+ {[%clk 0:00:48]}  Ke8 {[%clk 0:00:02]} 39. Bxh4 {[%clk 0:00:47]}  Rc8 {[%clk 0:00:02]} 40. Qa4+ {[%clk 0:00:37]}  Rc6 {[%clk 0:00:02]} 41. b5 {[%clk 0:00:37]}  axb5 {[%clk 0:00:03]} 42. cxb5 {[%clk 0:00:37]}  Rc2 {[%clk 0:00:03]} 43. b6+ {[%clk 0:00:34]}  Kf8 {[%clk 0:00:02]} 44. Qd4 {[%clk 0:00:30]}  e5 {[%clk 0:00:01]} 45. Qxd6+ {[%clk 0:00:29]} 1-0


[Site "https://www.chess.com"]